bitfinex/quotes_BTCUSD_20250127
["timestamp","ask_amount","ask_price","bid_price","bid_amount"]
[1738020558121,3.69726025,101980.0,101970.0,0.21484044]
[1738020559231,3.59726025,101980.0,101970.0,0.21484044]
[1738020559469,3.30726025,101980.0,101970.0,0.21484044]
[1738020560161,3.31956543,101980.0,101970.0,6.6e-07]
[1738020560284,3.31956543,101980.0,101960.0,0.0001416]
[1738020560285,0.416316,101960.0,101950.0,0.0001415]
[1738020560485,4.44079985,101960.0,101950.0,0.00063136]
[1738020560714,4.47209185,101960.0,101950.0,0.00063136]
[1738020561151,4.48209185,101960.0,101950.0,0.00063136]
[1738020561409,0.84013,101950.0,101940.0,0.00010171]
[1738020561635,5.33156842,101950.0,101940.0,0.00010171]
[1738020561856,5.65516771,101950.0,101940.0,0.00010171]
[1738020562975,5.63257471,101950.0,101940.0,0.00010171]
[1738020563187,5.55140071,101950.0,101940.0,0.00010171]
[1738020564606,5.56679109,101950.0,101940.0,0.00010171]
[1738020564834,0.649959,101930.0,101920.0,4e-07]
[1738020565028,0.147217,101890.0,101880.0,0.0001417]
[1738020565260,0.96918738,101890.0,101880.0,0.0001417]
[1738020565413,0.82197038,101890.0,101880.0,0.1473737]
[1738020565621,0.96887038,101890.0,101880.0,0.15283756]
[1738020565827,0.96887038,101890.0,101880.0,0.64358756]
[1738020566485,0.9693596,101890.0,101880.0,0.64358756]
[1738020566892,1.2165766,101890.0,101880.0,0.49635556]
[1738020568301,1.31392389,101890.0,101880.0,0.64358756]
[1738020568498,1.33692389,101890.0,101880.0,0.49635556]
[1738020573333,1.35231965,101890.0,101880.0,0.49635556]
[1738020576535,1.36175965,101890.0,101880.0,0.49635556]
[1738020577970,1.26441236,101890.0,101880.0,0.49635556]
[1738020578128,1.16441236,101890.0,101880.0,0.49635556]
[1738020579204,1.16441236,101890.0,101880.0,0.64358756]
[1738020579410,1.25497236,101890.0,101880.0,0.64358756]
[1738020579674,1.26441236,101890.0,101880.0,0.64358756]
[1738020579886,0.9923596,101890.0,101880.0,0.64358756]
[1738020580092,1.0787996,101890.0,101880.0,0.64358756]
[1738020580287,0.9787996,101890.0,101880.0,0.64358756]
[1738020580490,0.9787996,101890.0,101880.0,0.6381237]
[1738020580913,0.9787996,101890.0,101880.0,0.64395247]
[1738020583971,1.0017996,101890.0,101880.0,0.64395247]
[1738020584331,0.9787996,101890.0,101880.0,0.6381237]
[1738020584535,0.9787996,101890.0,101880.0,0.64395247]
[1738020586246,0.99419503,101890.0,101880.0,0.64395247]
[1738020587090,0.98475503,101890.0,101880.0,0.64395247]
[1738020587237,0.99419503,101890.0,101880.0,0.64395247]
[1738020587645,0.98475503,101890.0,101880.0,0.64395247]
[1738020587851,0.88740774,101890.0,101880.0,0.67665247]
[1738020589193,0.88740774,101890.0,101880.0,0.68665247]
[1738020589822,0.74211761,101890.0,101880.0,0.68665247]
[1738020591003,0.72672218,101890.0,101880.0,0.68665247]
[1738020591652,0.72672218,101890.0,101880.0,0.68965247]
[1738020592444,0.72672218,101890.0,101880.0,0.71071387]
[1738020594713,0.7421162,101890.0,101880.0,0.71071387]
[1738020594915,0.7421162,101890.0,101880.0,1.06901643]
[1738020595136,0.5087162,101890.0,101880.0,1.11691643]
[1738020595340,0.01588324,101890.0,101880.0,1.11691643]
[1738020595893,0.01588324,101890.0,101880.0,1.11591643]
[1738020596639,0.01588324,101890.0,101880.0,1.11291643]
[1738020596796,0.01688324,101890.0,101880.0,1.11891643]
[1738020597415,0.01688324,101890.0,101880.0,1.12091643]
[1738020600535,0.01688324,101890.0,101880.0,1.2318717]
[1738020600691,0.01688324,101890.0,101880.0,1.12091643]
[1738020601094,0.01688324,101890.0,101880.0,0.87991387]
[1738020602075,0.01688324,101890.0,101880.0,0.99086914]
[1738020602814,0.01688324,101890.0,101880.0,0.87991387]
[1738020604732,0.01688324,101890.0,101880.0,0.99086914]
[1738020606009,0.01688324,101890.0,101880.0,0.87991387]
[1738020606708,0.01688324,101890.0,101880.0,0.99086914]
[1738020609104,0.01688324,101890.0,101880.0,1.08821643]
[1738020609528,0.00148922,101890.0,101880.0,1.08821643]
[1738020612369,0.00148922,101890.0,101880.0,1.19141643]
[1738020612729,0.00148922,101890.0,101880.0,1.24976883]
[1738020612871,0.01688113,101890.0,101880.0,1.2518717]
[1738020613071,0.01688113,101890.0,101880.0,1.17151315]
[1738020613307,0.01688113,101890.0,101880.0,1.12091643]
[1738020614643,0.01688113,101890.0,101880.0,1.14091643]
[1738020614997,0.01688113,101890.0,101880.0,1.12091643]
[1738020615197,0.00148922,101890.0,101880.0,1.12091643]
[1738020615675,0.00148922,101890.0,101880.0,1.00996116]
[1738020615886,0.00148922,101890.0,101880.0,0.97726116]
[1738020616086,0.00148922,101890.0,101880.0,0.92936116]
[1738020616583,0.00148922,101890.0,101880.0,1.06031643]
[1738020617913,0.00148922,101890.0,101880.0,1.04031643]
[1738020618107,0.00148922,101890.0,101880.0,1.06031643]
[1738020618514,0.00148922,101890.0,101880.0,1.04031643]
[1738020618718,0.00148922,101890.0,101880.0,1.06031643]
[1738020619339,0.00148922,101890.0,101880.0,1.04031643]
[1738020619671,0.00148922,101890.0,101880.0,1.06031643]
[1738020620404,0.00148922,101890.0,101880.0,1.06951521]
[1738020621058,0.00148922,101890.0,101880.0,1.04951521]
[1738020621457,0.00148922,101890.0,101880.0,0.89951521]
[1738020622142,0.00148922,101890.0,101880.0,1.04951521]
[1738020622550,0.01688189,101890.0,101880.0,1.04951521]
[1738020622965,0.01688189,101890.0,101880.0,1.04031643]
[1738020623397,0.01688189,101890.0,101880.0,1.28543306]
[1738020623584,0.01688189,101890.0,101880.0,1.30543306]
[1738020623585,0.00148922,101890.0,101880.0,1.30543306]
[1738020623909,0.00148922,101890.0,101880.0,1.35383306]
[1738020624615,2.2e-07,101890.0,101880.0,1.35383306]
[1738020624859,0.00029736,101920.0,101910.0,0.307188]
[1738020625063,0.5635526,101950.0,101940.0,0.147145]
[1738020625266,0.5635526,101950.0,101940.0,0.14812575]
[1738020625267,1.05638556,101950.0,101940.0,0.14812575]
[1738020625443,1.05638556,101950.0,101940.0,0.64450021]
[1738020625657,1.03434012,101950.0,101940.0,0.64351946]
[1738020626282,1.03434012,101950.0,101940.0,0.64366639]
[1738020626608,0.94613296,101950.0,101940.0,0.64366639]
[1738020628488,0.96251905,101950.0,101940.0,0.64366639]
[1738020628691,0.96351905,101950.0,101940.0,0.64366639]
[1738020630896,0.96251905,101950.0,101940.0,0.64366639]
[1738020631099,0.96351905,101950.0,101940.0,0.64366639]
[1738020631416,0.96251905,101950.0,101940.0,0.64366639]
[1738020631839,0.96351905,101950.0,101940.0,0.64366639]
[1738020632209,0.83811905,101950.0,101940.0,0.65366639]
[1738020632552,0.83911905,101950.0,101940.0,0.76462166]
[1738020633911,0.83911905,101950.0,101940.0,0.91462166]
[1738020634430,0.8394162,101950.0,101940.0,0.91462166]
[1738020634627,0.5105162,101950.0,101940.0,0.91462166]
[1738020635705,0.5105162,101950.0,101940.0,0.93433083]
[1738020636201,0.49513011,101950.0,101940.0,0.93433083]
[1738020636533,0.00229715,101950.0,101940.0,0.93433083]
[1738020637169,0.00229715,101950.0,101940.0,1.14263339]
[1738020637340,0.00129715,101950.0,101940.0,1.03167812]
[1738020637543,0.00029715,101950.0,101940.0,1.03167812]
[1738020637792,0.00029715,101950.0,101940.0,1.03667812]
[1738020638100,0.00029715,101950.0,101940.0,1.03867812]
[1738020638403,0.00029715,101950.0,101940.0,0.94133083]
[1738020639125,0.49313011,101950.0,101940.0,0.94133083]
[1738020639601,0.50851417,101950.0,101940.0,0.94133083]
[1738020640211,0.01568121,101950.0,101940.0,0.94133083]
[1738020640560,0.50851417,101950.0,101940.0,0.94133083]
[1738020640767,0.50851417,101950.0,101940.0,1.03867812]
[1738020640768,0.01568121,101950.0,101940.0,1.03867812]
[1738020641120,0.50851417,101950.0,101940.0,1.03867812]
[1738020642273,0.50851417,101950.0,101940.0,0.94133083]
[1738020642909,0.50851417,101950.0,101940.0,1.03867812]
[1738020646134,0.49313011,101950.0,101940.0,1.03867812]
[1738020649297,0.49313011,101950.0,101940.0,0.9496166]
[1738020649447,0.57133011,101950.0,101940.0,0.83866133]
[1738020649853,0.49313011,101950.0,101940.0,1.05696389]
[1738020650285,0.49313011,101950.0,101940.0,1.05496389]
[1738020650493,0.49313011,101950.0,101940.0,1.03667812]
[1738020651102,0.49313011,101950.0,101940.0,1.03767812]
[1738020651505,0.49313011,101950.0,101940.0,1.03667812]
[1738020651892,0.49313011,101950.0,101940.0,1.03867812]
[1738020652087,0.49313011,101950.0,101940.0,0.82037556]
[1738020652292,0.49313011,101950.0,101940.0,0.83037556]
[1738020653475,0.49313011,101950.0,101940.0,0.94133083]
[1738020653699,0.50851423,101950.0,101940.0,0.94133083]
[1738020654465,0.50851423,101950.0,101940.0,0.83037556]
[1738020655317,0.01568127,101950.0,101940.0,0.83037556]
[1738020655697,0.01543448,101950.0,101940.0,0.83037556]
[1738020655912,0.01543448,101950.0,101940.0,1.03867812]
[1738020656376,5.036e-05,101950.0,101940.0,1.03867812]
[1738020658769,5.036e-05,101950.0,101940.0,1.06925529]
[1738020659728,0.01543393,101950.0,101940.0,1.06925529]
[1738020661849,0.01543393,101950.0,101940.0,1.18021056]
[1738020662052,0.01543393,101950.0,101940.0,1.08925529]
[1738020662588,5.036e-05,101950.0,101940.0,1.08925529]
[1738020664049,0.01543327,101950.0,101940.0,1.08925529]
[1738020666104,5.036e-05,101950.0,101940.0,1.08925529]
[1738020666849,5.036e-05,101950.0,101940.0,1.06925529]
[1738020667084,5.036e-05,101950.0,101940.0,1.08925529]
[1738020670104,5.036e-05,101950.0,101940.0,1.08939669]
[1738020670891,5.036e-05,101950.0,101940.0,1.06939669]
[1738020673131,5.036e-05,101950.0,101940.0,1.05939669]
[1738020673344,0.12465036,101950.0,101940.0,0.70109413]
[1738020673550,0.12465036,101950.0,101940.0,0.68138496]
[1738020673756,0.14003406,101950.0,101940.0,0.68138496]
[1738020674162,0.12465036,101950.0,101940.0,0.83138496]
[1738020674706,0.55688269,101950.0,101940.0,0.50366279]
[1738020674917,0.55688269,101950.0,101940.0,0.42556279]
[1738020674918,0.70688269,101950.0,101940.0,0.42556279]
[1738020675210,0.60688269,101950.0,101940.0,0.38097866]
[1738020675418,1.22067269,101950.0,101940.0,0.38097866]
[1738020675619,0.97465269,101950.0,101940.0,0.37397866]
[1738020675804,0.97465269,101950.0,101940.0,0.37497866]
[1738020676010,0.55152765,101950.0,101940.0,0.37697866]
[1738020676136,0.55152765,101950.0,101940.0,0.37397866]
[1738020676552,0.55352765,101950.0,101940.0,0.37397866]
[1738020677051,0.50352765,101950.0,101940.0,0.52112366]
[1738020677191,0.33339765,101950.0,101940.0,0.52112366]
[1738020677695,0.48052765,101950.0,101940.0,0.52112366]
[1738020678206,0.57687494,101950.0,101940.0,0.52112366]
[1738020678417,0.57787494,101950.0,101940.0,0.52112366]
[1738020678915,0.59226216,101950.0,101940.0,0.52112366]
[1738020679117,0.44513216,101950.0,101940.0,0.52112366]
[1738020679325,0.59326216,101950.0,101940.0,0.52112366]
[1738020680058,0.61626216,101950.0,101940.0,0.37397866]
[1738020680321,0.51626216,101950.0,101940.0,0.37397866]
[1738020682143,0.66626216,101950.0,101940.0,0.37397866]
[1738020682493,0.65686216,101950.0,101940.0,0.37397866]
[1738020682696,0.66891487,101950.0,101940.0,0.37397866]
[1738020682893,0.66891487,101950.0,101940.0,0.52112366]
[1738020682894,0.38938487,101950.0,101940.0,0.52112366]
[1738020683236,0.64591487,101950.0,101940.0,0.52112366]
[1738020683432,0.63651487,101950.0,101940.0,0.52112366]
[1738020683610,0.64591487,101950.0,101940.0,0.52112366]
[1738020684462,0.64591487,101950.0,101940.0,0.37397866]
[1738020684642,0.64591487,101950.0,101940.0,0.52112366]
[1738020685205,0.33938487,101950.0,101940.0,0.52112366]
[1738020685407,0.33339765,101950.0,101940.0,0.52112366]
[1738020685629,0.32399765,101950.0,101940.0,0.52112366]
[1738020685845,0.33339765,101950.0,101940.0,0.52112366]
[1738020686384,0.32399765,101950.0,101940.0,0.52112366]
[1738020686531,0.33339765,101950.0,101940.0,0.52112366]
[1738020687533,0.23605036,101950.0,101940.0,0.52112366]
[1738020687750,0.13605036,101950.0,101940.0,0.52112366]
[1738020690336,0.12665036,101950.0,101940.0,0.52112366]
[1738020690469,0.13605036,101950.0,101940.0,0.52112366]
[1738020690872,0.15143719,101950.0,101940.0,0.52112366]
[1738020691074,0.48033719,101950.0,101940.0,0.52112366]
[1738020692586,0.47093719,101950.0,101940.0,0.52112366]
[1738020692793,0.48033719,101950.0,101940.0,0.52112366]
[1738020693192,0.52588545,101950.0,101940.0,0.52112366]
[1738020693597,0.48033719,101950.0,101940.0,0.52112366]
[1738020694001,0.62746719,101950.0,101940.0,0.52112366]
[1738020694628,0.82481448,101950.0,101940.0,0.52112366]
[1738020694849,0.80942765,101950.0,101940.0,0.52112366]
[1738020697139,0.48052765,101950.0,101940.0,0.52112366]
[1738020697303,0.50352765,101950.0,101940.0,0.37397866]
[1738020697509,0.49335774,101950.0,101940.0,0.37397866]
[1738020698667,0.64335774,101950.0,101940.0,0.37397866]
[1738020699178,0.66223701,101950.0,101940.0,0.37397866]
[1738020699381,0.66123701,101950.0,101940.0,0.37397866]
[1738020700238,0.66223701,101950.0,101940.0,0.37397866]
[1738020700516,0.66123701,101950.0,101940.0,0.37397866]
[1738020700694,0.66223701,101950.0,101940.0,0.37397866]
[1738020701027,0.7595843,101950.0,101940.0,0.37397866]
[1738020701766,0.7595843,101950.0,101940.0,0.52112366]
[1738020701967,0.39699765,101950.0,101940.0,0.52112366]
[1738020702210,0.54412765,101950.0,101940.0,0.52112366]
[1738020702415,0.56891547,101950.0,101940.0,0.52112366]
[1738020703023,0.89781547,101950.0,101940.0,0.52112366]
[1738020703849,0.88841547,101950.0,101940.0,0.52112366]
[1738020704049,0.89781547,101950.0,101940.0,0.52112366]
[1738020704195,0.94287212,101950.0,101940.0,0.52112366]
[1738020704858,0.94287212,101950.0,101940.0,0.37397866]
[1738020705273,0.94287212,101950.0,101940.0,0.52112366]
[1738020705825,0.89781547,101950.0,101940.0,0.52112366]
[1738020706720,0.88242765,101950.0,101940.0,0.52112366]
[1738020708011,0.41765036,101950.0,101940.0,0.52112366]
[1738020709984,0.34633736,101950.0,101940.0,0.52112366]
[1738020710189,0.34035036,101950.0,101940.0,0.52112366]
[1738020711739,0.33935036,101950.0,101940.0,0.52112366]
[1738020711936,0.34035036,101950.0,101940.0,0.52112366]
[1738020712858,0.33935036,101950.0,101940.0,0.52112366]
[1738020713380,0.48748036,101950.0,101940.0,0.52112366]
[1738020713517,0.78917721,101950.0,101940.0,0.37397866]
[1738020713723,0.76797721,101950.0,101940.0,0.37397866]
[1738020714120,0.76897721,101950.0,101940.0,0.37397866]
[1738020715877,1.36548921,101950.0,101940.0,0.37397866]
[1738020716077,1.40067676,101950.0,101940.0,0.37397866]
[1738020716477,1.37834476,101950.0,101940.0,0.37397866]
[1738020716944,1.04944476,101950.0,101940.0,0.37397866]
[1738020717143,1.44944476,101950.0,101940.0,0.37397866]
[1738020717570,1.45723777,101950.0,101940.0,0.36856279]
[1738020718122,1.45723777,101950.0,101940.0,0.37397866]
[1738020718301,1.45823777,101950.0,101940.0,0.37397866]
[1738020718527,1.07885777,101950.0,101940.0,0.37397866]
[1738020718726,1.07985777,101950.0,101940.0,0.37397866]
[1738020719062,2.07158577,101950.0,101940.0,0.37397866]
[1738020720426,2.10902026,101950.0,101940.0,0.37397866]
[1738020720669,1.56065786,101950.0,101940.0,0.37397866]
[1738020720883,0.32587907,101950.0,101940.0,0.52112366]
[1738020721036,0.47300907,101950.0,101940.0,0.52112366]
[1738020721222,0.47300907,101950.0,101940.0,0.37397866]
[1738020721428,0.47300907,101950.0,101940.0,0.52112366]
[1738020721638,0.46364907,101950.0,101940.0,0.52112366]
[1738020722025,0.47200907,101950.0,101940.0,0.52112366]
[1738020722361,0.12580024,101950.0,101940.0,0.52112366]
[1738020723861,0.01644024,101950.0,101940.0,0.78522622]
[1738020724247,0.00105036,101950.0,101940.0,0.66427095]
[1738020724524,0.00105036,101950.0,101940.0,0.67427095]
[1738020724720,5.036e-05,101950.0,101940.0,0.67427095]
[1738020724930,0.00105036,101950.0,101940.0,0.67427095]
[1738020725334,5.036e-05,101950.0,101940.0,0.67427095]
[1738020725532,5.036e-05,101950.0,101940.0,0.67927095]
[1738020725732,5.036e-05,101950.0,101940.0,0.57192366]
[1738020725966,5.036e-05,101950.0,101940.0,0.52612366]
[1738020726350,0.42895036,101950.0,101940.0,0.52812366]
[1738020726690,0.42895036,101950.0,101940.0,0.52612366]
[1738020726905,5.036e-05,101950.0,101940.0,0.72977893]
[1738020727136,5.036e-05,101950.0,101940.0,0.72577893]
[1738020727329,5.036e-05,101950.0,101940.0,0.72777893]
[1738020727964,5.036e-05,101950.0,101940.0,0.61682366]
[1738020728302,5.036e-05,101950.0,101940.0,0.52112366]
[1738020728504,0.00738392,101950.0,101940.0,0.52112366]
[1738020728714,0.00738392,101950.0,101940.0,0.52712366]
[1738020728931,0.02276885,101950.0,101940.0,0.52712366]
[1738020729493,0.02276885,101950.0,101940.0,0.90727095]
[1738020729694,2.9e-07,101950.0,101940.0,1.14918149]
[1738020729922,0.10029715,101980.0,101970.0,0.147102]
[1738020730120,0.59313011,101980.0,101970.0,0.759652]
[1738020730474,0.59313011,101980.0,101970.0,0.76531795]
[1738020730715,0.59313011,101980.0,101970.0,0.91531795]
[1738020730920,0.00029715,101980.0,101970.0,1.13362051]
[1738020731122,0.00029715,101980.0,101970.0,1.26457578]
[1738020731342,0.00029715,101980.0,101970.0,1.15362051]
[1738020731515,0.00029715,101980.0,101970.0,1.26457578]
[1738020731871,0.00029715,101980.0,101970.0,1.15362051]
[1738020732281,3e-07,101990.0,101980.0,0.177087]
[1738020732485,3e-07,101990.0,101980.0,0.99886976]
[1738020732696,3e-07,101990.0,101980.0,1.00352007]
[1738020732912,3e-07,101990.0,101980.0,1.15352007]
[1738020733321,0.06879407,102000.0,101990.0,0.204673]
[1738020733566,0.06879407,102000.0,101990.0,1.02542556]
[1738020733749,0.06879407,102000.0,101990.0,1.05112898]
[1738020733957,0.01567446,102030.0,102010.0,0.157044]
[1738020733958,0.56162703,102020.0,102010.0,0.157044]
[1738020734163,0.56162703,102020.0,102010.0,0.759394]
[1738020734510,0.66162703,102020.0,102010.0,0.76502658]
[1738020734713,0.67700275,102020.0,102010.0,0.76502658]
[1738020734917,0.66162703,102020.0,102010.0,0.76502658]
[1738020735342,0.06879407,102020.0,102010.0,1.13532914]
[1738020735555,0.00029736,102030.0,102020.0,0.307029]
[1738020735781,0.00029736,102030.0,102020.0,1.12764156]
[1738020736000,0.00029736,102030.0,102020.0,1.13223874]
[1738020736832,0.00078749,102030.0,102020.0,1.13223874]
[1738020737587,0.49362045,102030.0,102020.0,1.13423874]
[1738020737988,0.49362045,102030.0,102020.0,1.13523874]
[1738020738588,0.49362045,102030.0,102020.0,1.1904997]
[1738020740175,0.49362045,102030.0,102020.0,1.02428347]
[1738020740294,0.49362045,102030.0,102020.0,0.92693618]
[1738020740690,0.49362045,102030.0,102020.0,0.91693618]
[1738020740982,0.49362045,102030.0,102020.0,0.76793618]
[1738020740983,1.06953545,102030.0,102020.0,0.76793618]
[1738020741190,0.92252045,102030.0,102020.0,0.76793618]
[1738020741638,0.92252045,102030.0,102020.0,0.76693618]
[1738020741863,0.92252045,102030.0,102020.0,0.76493618]
[1738020742226,1.10525632,102030.0,102020.0,0.61790718]
[1738020742631,1.32690361,102030.0,102020.0,0.61790718]
[1738020742834,1.47690361,102030.0,102020.0,0.61790718]
[1738020743020,1.14800361,102030.0,102020.0,0.61790718]
[1738020744044,1.14900361,102030.0,102020.0,0.61790718]
[1738020744357,1.05065632,102030.0,102020.0,0.61790718]
[1738020744753,1.57049232,102030.0,102020.0,0.61790718]
[1738020746656,1.49055832,102030.0,102020.0,0.61790718]
[1738020746906,1.40905774,102030.0,102020.0,0.61790718]
[1738020747927,1.25056174,102030.0,102020.0,0.61790718]
[1738020748316,1.25056174,102030.0,102020.0,0.60124051]
[1738020749266,1.34790903,102030.0,102020.0,0.60124051]
[1738020750122,1.36328554,102030.0,102020.0,0.60124051]
[1738020751177,1.26593825,102030.0,102020.0,0.60124051]
[1738020752644,1.27528349,102030.0,102020.0,0.60124051]
[1738020753927,1.19668749,102030.0,102020.0,0.60124051]
[1738020754133,1.19668549,102030.0,102020.0,0.60124051]
[1738020754562,1.06100449,102030.0,102020.0,0.60124051]
[1738020754764,1.19668549,102030.0,102020.0,0.60124051]
[1738020755106,1.29856749,102030.0,102020.0,0.60124051]
[1738020755314,1.29769578,102030.0,102020.0,0.60124051]
[1738020755520,1.28231927,102030.0,102020.0,0.60124051]
[1738020756152,1.68231927,102030.0,102020.0,0.60124051]
[1738020756361,1.72700679,102030.0,102020.0,0.60124051]
[1738020756543,1.72700679,102030.0,102020.0,0.59564333]
[1738020756891,1.67344461,102030.0,102020.0,0.49762333]
[1738020757028,1.72717922,102030.0,102020.0,0.36071133]
[1738020757225,1.72817922,102030.0,102020.0,0.32150333]
[1738020757442,1.72817922,102030.0,102020.0,0.30613334]
[1738020757846,1.72717922,102030.0,102020.0,0.30613334]
[1738020758045,1.72817922,102030.0,102020.0,0.30613334]
[1738020758246,1.37344461,102030.0,102020.0,0.30613334]
[1738020758950,1.39314884,102030.0,102020.0,0.30613334]
[1738020759517,1.39314884,102030.0,102020.0,0.11642647]
[1738020759715,1.34740267,102030.0,102020.0,0.11642647]
[1738020760128,1.3320235,102030.0,102020.0,0.11642647]
[1738020762523,1.6313835,102030.0,102020.0,0.11642647]
[1738020762724,1.4313835,102030.0,102020.0,0.11642647]
[1738020762921,1.3083835,102030.0,102020.0,0.11642647]
[1738020763126,1.20641531,102030.0,102020.0,0.11642647]
[1738020763471,1.22941531,102030.0,102020.0,0.11656797]
[1738020763907,1.05541531,102030.0,102020.0,0.12216515]
[1738020764055,0.97113198,102030.0,102020.0,0.11656797]
[1738020764472,1.14413198,102030.0,102020.0,0.12216515]
[1738020764768,1.24147927,102030.0,102020.0,0.12216515]
[1738020765156,1.10213527,102030.0,102020.0,0.12216515]
[1738020765600,1.25153527,102030.0,102020.0,0.12216515]
[1738020765936,0.75870231,102030.0,102020.0,0.12216515]
[1738020766904,0.68360231,102030.0,102020.0,0.12216515]
[1738020767285,0.53420231,102030.0,102020.0,0.12216515]
[1738020767493,0.54957947,102030.0,102020.0,0.12216515]
[1738020767694,0.63580531,102030.0,102020.0,0.12216515]
[1738020767895,0.53420231,102030.0,102020.0,0.12216515]
[1738020769152,0.43685502,102030.0,102020.0,0.12216515]
[1738020770784,0.45223214,102030.0,102020.0,0.12216515]
[1738020771578,0.4335269,102030.0,102020.0,0.26919415]
[1738020771795,0.4428869,102030.0,102020.0,0.12216515]
[1738020774193,0.4428869,102030.0,102020.0,0.26919415]
[1738020774575,0.4428869,102030.0,102020.0,0.12216515]
[1738020775056,0.54023419,102030.0,102020.0,0.12216515]
[1738020775999,0.53087419,102030.0,102020.0,0.12216515]
[1738020776224,0.54023419,102030.0,102020.0,0.26919415]
[1738020776428,0.54023419,102030.0,102020.0,0.12216515]
[1738020777455,0.54023419,102030.0,102020.0,0.26919415]
[1738020777659,0.52481707,102030.0,102020.0,0.12216515]
[1738020781806,0.54019362,102030.0,102020.0,0.12216515]
[1738020782231,1.13010262,102030.0,102020.0,0.12216515]
[1738020782431,1.12078262,102030.0,102020.0,0.12216515]
[1738020782637,1.13010262,102030.0,102020.0,0.12216515]
[1738020783395,1.03010262,102030.0,102020.0,0.12216515]
[1738020786729,0.98406862,102030.0,102020.0,0.12216515]
[1738020786965,0.96869207,102030.0,102020.0,0.12216515]
[1738020789761,1.14679207,102030.0,102020.0,0.12216515]
[1738020789966,1.19469207,102030.0,102020.0,0.12216515]
[1738020790184,1.21006964,102030.0,102020.0,0.12216515]
[1738020790390,1.19469207,102030.0,102020.0,0.12216515]
[1738020791817,1.14874607,102030.0,102020.0,0.12216515]
[1738020794220,1.16412364,102030.0,102020.0,0.12216515]
[1738020794759,1.18358864,102030.0,102020.0,0.12216515]
[1738020795395,1.16821107,102030.0,102020.0,0.12216515]
[1738020796106,1.46821107,102030.0,102020.0,0.12216515]
[1738020796316,0.147073,101990.0,101980.0,0.222985]
[1738020796558,0.82375325,101990.0,101980.0,0.222985]
[1738020796758,0.89215347,101990.0,101980.0,0.72046598]
[1738020796957,1.00518458,101990.0,101980.0,0.72046598]
[1738020797618,1.00518458,101990.0,101980.0,0.57652591]
[1738020797818,1.12553187,101990.0,101980.0,0.50062591]
[1738020799476,1.14091206,101990.0,101980.0,0.50062591]
[1738020799884,1.04356477,101990.0,101980.0,0.50062591]
[1738020802060,1.88986477,101990.0,101980.0,0.42217791]
[1738020802278,1.9951977,101990.0,101980.0,0.09876185]
[1738020802417,1.6951977,101990.0,101980.0,0.01973948]
[1738020802632,1.65515364,101990.0,101980.0,0.01973948]
[1738020802832,1.6977938,101990.0,101980.0,0.01773948]
[1738020803708,1.7071138,101990.0,101980.0,0.01773948]
[1738020804007,1.7071138,101990.0,101980.0,0.01673948]
[1738020804157,1.6589138,101990.0,101980.0,0.01673948]
[1738020804371,1.06225401,101990.0,101980.0,0.01673948]
[1738020804546,1.17932401,101990.0,101980.0,0.01673948]
[1738020804750,1.4266713,101990.0,101980.0,0.01673948]
[1738020804996,1.30660181,101990.0,101980.0,0.01673948]
[1738020805403,1.45660181,101990.0,101980.0,0.01673948]
[1738020806012,1.44122162,101990.0,101980.0,0.01673948]
[1738020809294,1.44122162,101990.0,101980.0,0.01688098]
[1738020810011,1.54122162,101990.0,101980.0,0.01688098]
[1738020810238,1.55660401,101990.0,101980.0,0.01688098]
[1738020811680,1.73323801,101990.0,101980.0,0.01688098]
[1738020811887,1.67338401,101990.0,101980.0,0.01688098]
[1738020812990,1.50781072,101990.0,101980.0,0.01688098]
[1738020813193,1.21225621,101990.0,101980.0,0.01688098]
[1738020817190,1.24218672,101990.0,101980.0,0.01688098]
[1738020817862,1.22680433,101990.0,101980.0,0.01688098]
[1738020820841,1.22710169,101990.0,101980.0,0.01688098]
[1738020821216,1.32444898,101990.0,101980.0,0.01688098]
[1738020821640,1.22710169,101990.0,101980.0,0.01688098]
[1738020824516,1.2424838,101990.0,101980.0,0.01688098]
[1738020825079,1.2331638,101990.0,101980.0,0.01688098]
[1738020825300,1.2424838,101990.0,101980.0,0.01688098]
[1738020826677,0.74965084,101990.0,101980.0,0.01688098]
[1738020827341,0.73426873,101990.0,101980.0,0.01688098]
[1738020828105,0.79820001,101990.0,101980.0,0.01688098]
[1738020831909,0.81358219,101990.0,101980.0,0.01688098]
[1738020832516,0.78365168,101990.0,101980.0,0.01688098]
[1738020837456,0.7682695,101990.0,101980.0,0.01688098]
[1738020841557,0.70433822,101990.0,101980.0,0.01688098]
[1738020841786,0.67201822,101990.0,101980.0,0.01688098]
[1738020841997,0.38687793,101990.0,101980.0,0.24626798]
[1738020842238,0.68395093,101990.0,101980.0,0.24626798]
[1738020842413,0.78129822,101990.0,101980.0,0.16396798]
[1738020842560,0.78129822,101990.0,101980.0,0.01688098]
[1738020842767,0.80164551,101990.0,101980.0,0.01688098]
[1738020843389,1.32711518,101990.0,101980.0,0.01688098]
[1738020843610,1.54931518,101990.0,101980.0,0.01688098]
[1738020843930,1.57131608,101990.0,101980.0,0.01688098]
[1738020844140,1.58669853,101990.0,101980.0,0.01688098]
[1738020844513,1.64170609,101990.0,101980.0,0.01688098]
[1738020845648,1.71474412,101990.0,101980.0,0.01688098]
[1738020846990,1.60546412,101990.0,101980.0,0.01688098]
[1738020847204,1.47089683,101990.0,101980.0,0.01688098]
[1738020847629,1.03213283,101990.0,101980.0,0.01688098]
[1738020847855,1.89615883,101990.0,101980.0,0.01688098]
[1738020848319,1.86387883,101990.0,101980.0,0.01688098]
[1738020848530,0.69547971,101990.0,101980.0,0.24646798]
[1738020848684,0.64047215,101990.0,101980.0,0.09938098]
[1738020848893,0.66347215,101990.0,101980.0,0.09938098]
[1738020849675,0.76081944,101990.0,101980.0,0.01688098]
[1738020849876,0.73881854,101990.0,101980.0,0.01688098]
[1738020850974,0.65164551,101990.0,101980.0,0.01688098]
[1738020851519,0.64236551,101990.0,101980.0,0.01688098]
[1738020851748,0.65164551,101990.0,101980.0,0.01688098]
[1738020852659,0.80164551,101990.0,101980.0,0.01688098]
[1738020852865,1.36705056,101990.0,101980.0,0.01688098]
[1738020853076,1.53962123,101990.0,101980.0,0.01688098]
[1738020854358,1.56162213,101990.0,101980.0,0.01688098]
[1738020854589,1.99523973,101990.0,101980.0,0.01688098]
[1738020854784,1.94513973,101990.0,101980.0,0.01688098]
[1738020855531,0.24713,101950.0,101940.0,0.2242854]
[1738020855752,0.92381025,101950.0,101940.0,0.22443257]
[1738020855901,0.92381025,101950.0,101940.0,0.71489257]
[1738020856265,0.93919573,101950.0,101940.0,0.71489257]
[1738020856463,0.94847573,101950.0,101940.0,0.71489257]
[1738020856675,0.80134573,101950.0,101940.0,0.71489257]
[1738020857603,0.68861296,101950.0,101940.0,0.71589257]
[1738020857807,0.68861296,101950.0,101940.0,0.71889257]
[1738020857988,0.58861296,101950.0,101940.0,0.71589257]
[1738020858186,0.58861296,101950.0,101940.0,0.87202839]
[1738020858388,0.58861296,101950.0,101940.0,0.76109257]
[1738020858973,0.67900287,101950.0,101940.0,0.76009257]
[1738020859178,0.58861296,101950.0,101940.0,0.76009257]
[1738020860190,0.58861296,101950.0,101940.0,0.76109257]
[1738020860396,0.58861296,101950.0,101940.0,0.76409257]
[1738020860540,0.91751296,101950.0,101940.0,0.76409257]